{"text_format":"1","workbook":"xlsx","n_sheets":4,"sheets":["Табл.1","Табл.2","Табл.1 old","Табл.2 old"],"not_rendered":{"charts":0,"images":0,"macros":0,"external_links":0,"defined_names":0,"comments":0,"pivot_tables":0},"unopened":[],"bounds":{"document_bytes":16777216,"sheet_cells":100000,"rows_first":2000,"rows_last":500,"rows_between":2000,"halvings":0,"cell_chars":16384,"cell_head_chars":4096},"cells_cut":0,"cells_raw":0,"read":"whole","date_system":"1900"}

{"sheet":"Табл.1","index":0,"n_rows":9,"n_cols":7,"rows_kept":9,"cut":false,"hidden":false,"merged":[]}
[]
[]
[null,"Наименование продукта","Категория продукта","Количество","Ед.измер!","Стоимость за единицу","Ед.измер"]
[null,"Морковь","Овощи",5,"шт.",15,"руб."]
[null,"Свекла","Овощи",50,"шт.",25,"руб."]
[null,"Брокколи","Овощи",20,"кг.",30,"руб."]
[null,"Капуста","Овощи",35,"кг.",14,"дол."]
[null,"Вишня","Фрукты",100,"кг.",62,"евр."]
[null,"Яблоко","Фрукты",59,"шт.",75,"руб."]

{"sheet":"Табл.2","index":1,"n_rows":10,"n_cols":18,"rows_kept":10,"cut":false,"hidden":false,"merged":[]}
[]
[]
[null,"Наименование продукта","Категория продукта","Количество","Ед.измер!","Стоимость за единицу","Ед.измер","Доп.графа","Комментарий",null,null,null,null,null,"Это наброски формул УФ - можно удалить"]
[null,"Морковь","Овощи",5,"шт.",15,"руб.","оранжева","хорошо продается",null,null,null,null,null,{"$f":"ISNA(MATCH($B4,Табл.1!$B:$B,0))","v":false},{"$f":"OR(ISNA(MATCH($B4,Табл.1!$B:$B,0)), IFERROR(INDEX(Табл.1!C:C,MATCH($B4,Табл.1!$B:$B,0))<>C4,TRUE))","v":false},{"$f":"OR(ISNA(MATCH($B4,Табл.1!$B:$B,0)), IFERROR(INDEX(Табл.1!D:D,MATCH($B4,Табл.1!$B:$B,0))<>D4,TRUE))","v":false},{"$f":"OR(ISNA(MATCH($B4,Табл.1!$B:$B,0)), IFERROR(INDEX(Табл.1!E:E,MATCH($B4,Табл.1!$B:$B,0))<>E4,TRUE))","v":false}]
[null,"Свекла","Овощи",50,"шт.",25,"руб.","красная",null,null,null,null,null,null,{"$f":"ISNA(MATCH($B5,Табл.1!$B:$B,0))","v":false},{"$f":"OR(ISNA(MATCH($B5,Табл.1!$B:$B,0)), IFERROR(INDEX(Табл.1!C:C,MATCH($B5,Табл.1!$B:$B,0))<>C5,TRUE))","v":false},{"$f":"OR(ISNA(MATCH($B5,Табл.1!$B:$B,0)), IFERROR(INDEX(Табл.1!D:D,MATCH($B5,Табл.1!$B:$B,0))<>D5,TRUE))","v":false},{"$f":"OR(ISNA(MATCH($B5,Табл.1!$B:$B,0)), IFERROR(INDEX(Табл.1!E:E,MATCH($B5,Табл.1!$B:$B,0))<>E5,TRUE))","v":false}]
[null,"Малина","Фрукты",7,"кг.",100,"руб.","красная","плохо продается",null,null,null,null,null,{"$f":"ISNA(MATCH($B6,Табл.1!$B:$B,0))","v":true},{"$f":"OR(ISNA(MATCH($B6,Табл.1!$B:$B,0)), IFERROR(INDEX(Табл.1!C:C,MATCH($B6,Табл.1!$B:$B,0))<>C6,TRUE))","v":true},{"$f":"OR(ISNA(MATCH($B6,Табл.1!$B:$B,0)), IFERROR(INDEX(Табл.1!D:D,MATCH($B6,Табл.1!$B:$B,0))<>D6,TRUE))","v":true},{"$f":"OR(ISNA(MATCH($B6,Табл.1!$B:$B,0)), IFERROR(INDEX(Табл.1!E:E,MATCH($B6,Табл.1!$B:$B,0))<>E6,TRUE))","v":true}]
[null,"Брокколи","Овощи",36,"кг.",30,"руб.","зеленая",null,null,null,null,null,null,{"$f":"ISNA(MATCH($B7,Табл.1!$B:$B,0))","v":false},{"$f":"OR(ISNA(MATCH($B7,Табл.1!$B:$B,0)), IFERROR(INDEX(Табл.1!C:C,MATCH($B7,Табл.1!$B:$B,0))<>C7,TRUE))","v":false},{"$f":"OR(ISNA(MATCH($B7,Табл.1!$B:$B,0)), IFERROR(INDEX(Табл.1!D:D,MATCH($B7,Табл.1!$B:$B,0))<>D7,TRUE))","v":true},{"$f":"OR(ISNA(MATCH($B7,Табл.1!$B:$B,0)), IFERROR(INDEX(Табл.1!E:E,MATCH($B7,Табл.1!$B:$B,0))<>E7,TRUE))","v":false}]
[null,"Капуста","Овощи",35,"кг.",14,"дол.","светло-зеленая",null,null,null,null,null,null,{"$f":"ISNA(MATCH($B8,Табл.1!$B:$B,0))","v":false},{"$f":"OR(ISNA(MATCH($B8,Табл.1!$B:$B,0)), IFERROR(INDEX(Табл.1!C:C,MATCH($B8,Табл.1!$B:$B,0))<>C8,TRUE))","v":false},{"$f":"OR(ISNA(MATCH($B8,Табл.1!$B:$B,0)), IFERROR(INDEX(Табл.1!D:D,MATCH($B8,Табл.1!$B:$B,0))<>D8,TRUE))","v":false},{"$f":"OR(ISNA(MATCH($B8,Табл.1!$B:$B,0)), IFERROR(INDEX(Табл.1!E:E,MATCH($B8,Табл.1!$B:$B,0))<>E8,TRUE))","v":false}]
[null,"Вишня","Фрукты",100,"кг.",62,"евр.","вишневая",null,null,null,null,null,null,{"$f":"ISNA(MATCH($B9,Табл.1!$B:$B,0))","v":false},{"$f":"OR(ISNA(MATCH($B9,Табл.1!$B:$B,0)), IFERROR(INDEX(Табл.1!C:C,MATCH($B9,Табл.1!$B:$B,0))<>C9,TRUE))","v":false},{"$f":"OR(ISNA(MATCH($B9,Табл.1!$B:$B,0)), IFERROR(INDEX(Табл.1!D:D,MATCH($B9,Табл.1!$B:$B,0))<>D9,TRUE))","v":false},{"$f":"OR(ISNA(MATCH($B9,Табл.1!$B:$B,0)), IFERROR(INDEX(Табл.1!E:E,MATCH($B9,Табл.1!$B:$B,0))<>E9,TRUE))","v":false}]
[null,"Яблоко","Фрукты",59,"кг.",75,"руб.","белое",null,null,null,null,null,null,{"$f":"ISNA(MATCH($B10,Табл.1!$B:$B,0))","v":false},{"$f":"OR(ISNA(MATCH($B10,Табл.1!$B:$B,0)), IFERROR(INDEX(Табл.1!C:C,MATCH($B10,Табл.1!$B:$B,0))<>C10,TRUE))","v":false},{"$f":"OR(ISNA(MATCH($B10,Табл.1!$B:$B,0)), IFERROR(INDEX(Табл.1!D:D,MATCH($B10,Табл.1!$B:$B,0))<>D10,TRUE))","v":false},{"$f":"OR(ISNA(MATCH($B10,Табл.1!$B:$B,0)), IFERROR(INDEX(Табл.1!E:E,MATCH($B10,Табл.1!$B:$B,0))<>E10,TRUE))","v":true}]

{"sheet":"Табл.1 old","index":2,"n_rows":9,"n_cols":7,"rows_kept":9,"cut":false,"hidden":false,"merged":[]}
[]
[]
[null,"Наименование продукта","Категория продукта","Количество","Ед.измер!","Стоимость за единицу","Ед.измер"]
[null,"Морковь","Овощи",5,"шт.",15,"руб."]
[null,"Свекла","Овощи",50,"шт.",25,"руб."]
[null,"Брокколи","Овощи",20,"кг.",30,"руб."]
[null,"Капуста","Овощи",35,"кг.",14,"дол."]
[null,"Вишня","Фрукты",100,"кг.",62,"евр."]
[null,"Яблоко","Фрукты",59,"шт.",75,"руб."]

{"sheet":"Табл.2 old","index":3,"n_rows":10,"n_cols":9,"rows_kept":10,"cut":false,"hidden":false,"merged":[]}
[]
[]
[null,"Наименование продукта","Категория продукта","Количество","Ед.измер!","Стоимость за единицу","Ед.измер","Доп.графа","Комментарий"]
[null,"Морковь","Овощи",5,"шт.",15,"руб.","оранжева","хорошо продается"]
[null,"Свекла","Овощи",50,"шт.",25,"руб.","красная"]
[null,"Малина","Фрукты",7,"кг.",100,"руб.","красная","плохо продается"]
[null,"Брокколи","Овощи",36,"кг.",30,"руб.","зеленая"]
[null,"Капуста","Овощи",35,"кг.",14,"дол.","светло-зеленая"]
[null,"Вишня","Фрукты",100,"кг.",62,"евр.","вишневая"]
[null,"Яблоко","Фрукты",59,"кг.",75,"руб.","белое"]